bitfinex/quotes_SOLUSD_20230113
["timestamp","ask_amount","ask_price","bid_price","bid_amount"]
[1673635750712,44.54,16.842,16.829,17.0]
[1673635750945,44.54,16.84,16.829,17.0]
[1673635751136,44.54,16.841,16.829,17.0]
[1673635751348,44.54,16.842,16.829,17.0]
[1673635751553,44.54,16.84,16.829,17.0]
[1673635751779,44.54,16.84,16.828,20.0]
[1673635751780,44.54,16.841,16.828,20.0]
[1673635751977,61.54,16.839,16.827,20.0]
[1673635752192,20.0,16.838,16.821,108.9481]
[1673635752398,17.0,16.837,16.82,16.16]
[1673635752615,20.0,16.835,16.82,12.04]
[1673635752824,17.0,16.834,16.82,12.04]
[1673635753029,61.56,16.834,16.82,12.04]
[1673635753889,20.0,16.833,16.82,12.04]
[1673635754409,44.56,16.832,16.82,12.04]
[1673635755547,20.0,16.831,16.82,12.04]
[1673635755963,44.57,16.83,16.82,12.04]
[1673635756195,37.0,16.829,16.812,114.0483]
[1673635756595,20.0,16.827,16.812,114.0483]
[1673635756932,17.0,16.826,16.812,114.0483]
[1673635757123,20.0,16.825,16.812,114.0483]
[1673635757542,44.58,16.824,16.812,114.0483]
[1673635757752,44.58,16.824,16.81,60.42]
[1673635758189,44.58,16.824,16.811,17.0]
[1673635758509,44.58,16.824,16.811,46.9691928]
[1673635758713,44.58,16.825,16.811,46.9691928]
[1673635758928,44.58,16.827,16.811,46.9691928]
[1673635761778,44.56,16.832,16.82,12.04]
[1673635762494,44.56,16.833,16.821,17.0]
[1673635762712,110.896,16.834,16.821,17.0]
[1673635762929,110.896,16.834,16.821,61.59]
[1673635767248,110.896,16.834,16.82,15.98]
[1673635767446,110.896,16.834,16.821,20.0]
[1673635767656,110.896,16.834,16.821,94.5591928]
[1673635767868,110.896,16.834,16.822,29.9691928]
[1673635768614,44.55,16.838,16.823,17.0]
[1673635768922,44.55,16.838,16.824,20.0]
[1673635769132,108.5727,16.839,16.825,37.0]
[1673635769352,108.5727,16.839,16.826,20.0]
[1673635769537,108.5727,16.839,16.827,17.0]
[1673635769871,108.5727,16.839,16.828,20.0]
[1673635770186,108.5727,16.839,16.829,17.0]
[1673635771334,108.5727,16.839,16.83,16.03]
[1673635771552,44.53,16.843,16.831,17.0]
[1673635771957,109.0227,16.844,16.831,17.0]
[1673635772188,44.53,16.843,16.831,17.0]
[1673635772382,109.0227,16.844,16.832,20.0]
[1673635772593,109.0227,16.844,16.833,17.0]
[1673635772797,109.0227,16.844,16.831,17.0]
[1673635774586,61.53,16.843,16.83,16.09]
[1673635775542,44.53,16.843,16.83,16.09]
[1673635775949,109.0227,16.844,16.831,17.0]
[1673635776161,44.53,16.843,16.831,17.0]
[1673635776684,109.0227,16.844,16.831,17.0]
[1673635777646,153.5527,16.844,16.831,17.0]
[1673635777846,109.0227,16.844,16.831,17.0]
[1673635778270,64.53,16.843,16.831,17.0]
[1673635778496,44.53,16.843,16.831,17.0]
[1673635780074,44.53,16.843,16.83,16.09]
[1673635780287,20.0,16.841,16.83,16.09]
[1673635780820,44.54,16.84,16.83,16.09]
[1673635782496,44.54,16.84,16.828,20.0]
[1673635782807,44.54,16.84,16.829,20.0]
[1673635783116,44.54,16.84,16.822,44.59]
[1673635783332,20.0,16.838,16.821,109.4059]
[1673635783526,112.338,16.837,16.821,139.3750928]
[1673635783740,117.3577,16.839,16.83,16.02]
[1673635784475,117.3577,16.839,16.831,17.0]
[1673635787312,117.3577,16.839,16.83,16.02]
[1673635790794,117.3577,16.839,16.831,17.0]
[1673635794677,112.338,16.842,16.831,17.0]
[1673635794878,44.53,16.844,16.832,29.9691928]
[1673635795095,44.53,16.846,16.833,17.0]
[1673635795290,44.53,16.843,16.831,37.0]
[1673635795500,44.53,16.845,16.831,37.0]
[1673635795728,44.53,16.846,16.831,37.0]
[1673635796365,44.53,16.846,16.832,29.9691928]
[1673635796553,44.53,16.846,16.833,17.0]
[1673635796983,44.53,16.846,16.833,46.9691928]
[1673635798989,44.53,16.846,16.833,17.0]
[1673635799200,20.0,16.845,16.833,17.0]
[1673635799412,20.0,16.845,16.83,80.21]
[1673635799617,44.53,16.844,16.83,80.21]
[1673635800021,27.53,16.844,16.83,80.21]
[1673635800230,27.53,16.844,16.83,16.17]
[1673635800452,20.0,16.842,16.83,16.17]
[1673635800668,17.0,16.841,16.83,16.17]
[1673635800870,44.54,16.841,16.83,16.17]
[1673635801913,44.54,16.841,16.831,17.0]
[1673635802137,44.53,16.844,16.831,17.0]
[1673635804657,43.03,16.845,16.831,17.0]
[1673635804985,44.53,16.843,16.831,17.0]
[1673635805190,44.53,16.844,16.831,17.0]
[1673635805384,44.53,16.846,16.832,44.56]
[1673635805596,162.083,16.848,16.84,16.02]
[1673635805807,117.563,16.848,16.84,16.02]
[1673635806975,117.563,16.848,16.841,17.0]
[1673635807711,117.563,16.848,16.84,16.02]
[1673635808112,117.563,16.848,16.84,11.96]
[1673635808557,117.563,16.848,16.841,17.0]
[1673635810344,117.563,16.848,16.84,11.96]
[1673635812119,117.563,16.848,16.841,17.0]
[1673635815175,44.52,16.85,16.841,17.0]
[1673635815579,44.51,16.852,16.841,17.0]
[1673635817364,44.51,16.853,16.841,17.0]
[1673635817575,117.5532,16.854,16.841,17.0]
[1673635818013,117.5532,16.854,16.842,20.0]
[1673635818218,117.5532,16.854,16.843,17.0]
[1673635818436,44.5,16.856,16.843,17.0]
[1673635818630,119.3922,16.857,16.843,17.0]
[1673635818837,20.0,16.855,16.843,17.0]
[1673635819270,44.51,16.854,16.843,17.0]
[1673635819685,44.51,16.854,16.84,59.89]
[1673635819894,20.0,16.853,16.841,17.0]
[1673635820320,61.51,16.852,16.84,59.89]
[1673635820518,61.51,16.852,16.84,11.97]
[1673635820733,20.0,16.851,16.84,11.97]
[1673635820961,17.0,16.85,16.84,11.97]
[1673635821153,61.52,16.85,16.84,11.97]
[1673635821904,20.0,16.849,16.83,175.0536]
[1673635822116,37.0,16.848,16.83,60.28]
[1673635822329,118.9685,16.847,16.83,60.28]
[1673635822546,17.0,16.846,16.83,60.28]
[1673635822752,61.53,16.846,16.83,60.28]
[1673635822942,20.0,16.845,16.83,60.28]
[1673635823148,17.0,16.844,16.83,60.28]
[1673635823372,61.53,16.844,16.831,17.0]
[1673635824438,44.53,16.844,16.831,17.0]
[1673635825062,20.0,16.843,16.83,12.1]
[1673635825473,44.54,16.842,16.83,12.1]
[1673635825891,37.0,16.841,16.83,12.1]
[1673635826100,37.0,16.841,16.823,41.314811]
[1673635826317,44.54,16.84,16.825,20.0]
[1673635826525,17.0,16.839,16.825,20.0]
[1673635827061,44.55,16.838,16.825,20.0]
[1673635828124,44.55,16.838,16.826,17.0]
[1673635828300,44.55,16.838,16.827,20.0]
[1673635828513,17.0,16.837,16.821,156.3019]
[1673635828730,20.0,16.836,16.821,156.3019]
[1673635828951,20.0,16.836,16.822,17.0]
[1673635829148,64.55,16.836,16.822,17.0]
[1673635829885,64.55,16.836,16.82,46.0391928]
[1673635829886,17.0,16.835,16.82,16.07]
[1673635830303,44.56,16.834,16.82,16.07]
[1673635830527,20.0,16.836,16.82,16.07]
[1673635830745,118.4659,16.837,16.82,110.1191928]
[1673635830947,17.0,16.836,16.821,44.59]
[1673635831158,17.0,16.836,16.822,17.0]
[1673635831360,61.55,16.836,16.822,17.0]
[1673635831574,17.0,16.836,16.822,17.0]
[1673635831897,37.0,16.836,16.822,17.0]
[1673635832110,20.0,16.835,16.822,17.0]
[1673635832321,17.0,16.834,16.821,74.5591928]
[1673635832633,17.0,16.834,16.821,29.9691928]
[1673635832946,64.56,16.833,16.82,80.15]
[1673635833156,17.0,16.832,16.82,15.96]
[1673635833561,44.57,16.831,16.82,15.96]
[1673635835681,20.0,16.83,16.82,15.96]
[1673635836107,44.57,16.829,16.82,15.96]
[1673635836722,20.0,16.828,16.82,15.96]
[1673635837158,44.57,16.829,16.82,15.96]
[1673635837572,20.0,16.83,16.82,15.96]
[1673635840001,20.0,16.83,16.814,44.61]
[1673635840002,17.0,16.829,16.814,44.61]
[1673635840185,22.35400397,16.828,16.811,44.62]
[1673635840400,17.0,16.827,16.81,16.04]
[1673635840610,20.0,16.825,16.81,16.04]
[1673635840822,17.0,16.824,16.81,60.66]
[1673635841143,44.58,16.824,16.811,29.9691928]
[1673635841557,64.58,16.825,16.81,16.04]
[1673635842073,64.58,16.825,16.811,17.0]
[1673635842914,44.58,16.825,16.81,16.04]
[1673635844191,44.58,16.825,16.811,17.0]
[1673635844825,37.0,16.824,16.811,17.0]
[1673635845349,17.0,16.824,16.811,17.0]
[1673635845873,17.0,16.824,16.81,16.04]
[1673635846088,44.58,16.825,16.81,16.04]
[1673635846299,44.58,16.825,16.811,17.0]
[1673635850294,44.58,16.825,16.81,16.04]
[1673635850492,37.0,16.824,16.81,16.04]
[1673635851046,44.59,16.823,16.81,16.04]
[1673635851437,17.0,16.822,16.81,16.04]
[1673635854614,44.59,16.823,16.811,17.0]
[1673635854800,44.58,16.824,16.811,17.0]
[1673635855056,44.58,16.825,16.811,17.0]
[1673635855215,17.0,16.824,16.811,17.0]
[1673635856784,44.58,16.825,16.811,17.0]
[1673635857643,17.0,16.824,16.811,17.0]
[1673635861312,44.58,16.825,16.811,17.0]
[1673635861648,154.3532,16.826,16.812,20.0]
[1673635861950,109.7732,16.826,16.813,17.0]
[1673635862158,114.3759,16.83,16.82,16.04]
[1673635863312,20.0,16.828,16.813,17.0]
[1673635863717,20.0,16.826,16.813,17.0]
[1673635863930,44.58,16.827,16.813,17.0]
[1673635864574,155.5213,16.827,16.813,17.0]
[1673635865734,20.0,16.826,16.813,17.0]
[1673635866143,44.58,16.825,16.813,17.0]
[1673635868033,20.0,16.824,16.812,115.4576]
[1673635868242,37.0,16.824,16.81,16.18]
[1673635868460,44.59,16.823,16.81,16.18]
[1673635869203,44.58,16.825,16.81,16.18]
[1673635869517,44.58,16.825,16.811,17.0]
[1673635871092,44.58,16.826,16.811,17.0]
[1673635871283,44.58,16.826,16.811,37.0]
[1673635871932,44.58,16.826,16.811,17.0]
[1673635875302,17.0,16.825,16.81,60.12]
[1673635875695,44.58,16.824,16.81,60.12]
[1673635876555,44.58,16.824,16.811,17.0]
[1673635878332,44.58,16.825,16.812,20.0]
[1673635878564,44.58,16.826,16.813,17.0]
[1673635878773,159.1691,16.834,16.82,12.05]
[1673635880037,159.1691,16.834,16.821,17.0]
[1673635880246,114.6091,16.834,16.822,20.0]
[1673635880446,114.6091,16.834,16.823,17.0]
[1673635882235,114.6091,16.834,16.823,46.9691928]
[1673635882435,114.6091,16.834,16.823,17.0]
[1673635882854,114.6091,16.834,16.822,17.0]
[1673635883478,44.55,16.838,16.823,29.9691928]
[1673635883693,17.0,16.837,16.83,12.05]
[1673635883905,17.0,16.838,16.83,12.05]
[1673635884440,159.558,16.839,16.83,12.05]
[1673635884649,115.018,16.839,16.83,12.05]
[1673635886020,115.018,16.839,16.824,20.0]
[1673635886021,20.0,16.838,16.824,29.9691928]
[1673635886231,84.55,16.838,16.821,20.0]
[1673635886432,84.55,16.838,16.822,17.0]
[1673635886433,114.3144,16.837,16.822,17.0]
[1673635886858,44.55,16.836,16.822,17.0]
[1673635887603,44.55,16.836,16.823,49.9691928]
[1673635887800,114.3144,16.837,16.83,12.05]
[1673635887998,44.55,16.836,16.83,12.05]
[1673635888207,158.8644,16.837,16.83,12.05]
[1673635891394,37.0,16.836,16.821,20.0]
[1673635891804,44.56,16.835,16.821,79.9383856]
[1673635892008,44.56,16.835,16.821,49.9691928]
[1673635892224,44.56,16.835,16.821,29.9691928]
[1673635892440,61.55,16.836,16.822,17.0]
[1673635893391,115.018,16.839,16.83,12.05]
[1673635894849,115.018,16.839,16.83,42.0191928]
[1673635895376,115.018,16.839,16.83,12.05]
[1673635896530,115.018,16.839,16.823,44.59]
[1673635896762,44.55,16.838,16.824,20.0]
[1673635896957,20.0,16.837,16.823,29.9691928]
[1673635897175,137.4307,16.837,16.824,29.9691928]
[1673635897376,44.55,16.836,16.824,29.9691928]
[1673635897796,44.55,16.836,16.821,108.5024]
[1673635898026,44.55,16.836,16.822,29.9691928]
[1673635898443,44.55,16.836,16.823,17.0]
[1673635898652,115.018,16.839,16.83,12.05]
[1673635899269,159.558,16.839,16.83,12.05]
[1673635899490,44.54,16.841,16.831,29.9691928]
[1673635899696,44.54,16.842,16.832,17.0]
[1673635899898,44.53,16.843,16.832,17.0]
[1673635900758,44.53,16.843,16.833,29.9691928]
[1673635900957,119.8766,16.844,16.834,17.0]
[1673635901275,44.53,16.846,16.835,29.9691928]
[1673635901467,109.5088,16.848,16.836,20.0]
[1673635901679,109.5088,16.848,16.837,17.0]
[1673635901895,109.5088,16.848,16.836,20.0]
[1673635902105,20.0,16.851,16.836,20.0]
[1673635902417,61.52,16.85,16.836,20.0]
[1673635902832,44.52,16.85,16.837,46.9691928]
[1673635903048,44.52,16.85,16.838,20.0]
[1673635903280,44.51,16.852,16.839,17.0]
[1673635903469,44.52,16.849,16.84,12.05]
[1673635903683,44.51,16.851,16.84,12.05]
[1673635903898,44.52,16.848,16.84,12.05]
[1673635904108,44.52,16.85,16.84,12.05]
[1673635904316,44.51,16.853,16.84,12.05]
[1673635904543,44.52,16.849,16.84,12.05]
[1673635904739,44.51,16.852,16.84,12.05]
[1673635904950,64.51,16.853,16.84,12.05]
[1673635905147,17.0,16.852,16.84,12.05]
[1673635906217,44.51,16.851,16.84,12.05]
[1673635907801,44.51,16.853,16.84,12.05]
[1673635908423,44.51,16.853,16.841,17.0]
[1673635908628,119.8766,16.854,16.841,17.0]
[1673635908629,164.3766,16.854,16.841,17.0]
[1673635908953,44.51,16.852,16.841,17.0]
[1673635909266,44.51,16.853,16.841,17.0]
[1673635909790,44.51,16.853,16.841,46.9691928]
[1673635910420,119.8766,16.854,16.841,46.9691928]
[1673635910620,119.8766,16.854,16.841,91.5091928]
[1673635910833,119.8766,16.854,16.842,20.0]
[1673635911040,119.8766,16.854,16.843,17.0]
[1673635911682,119.8766,16.854,16.842,17.0]
[1673635912332,119.8766,16.854,16.841,17.0]
[1673635912644,44.5,16.856,16.842,29.9691928]
[1673635912754,158.5483,16.863,16.85,12.05]
[1673635912969,20.0,16.862,16.85,12.05]
[1673635913370,44.49,16.861,16.85,12.05]
[1673635913922,44.48,16.862,16.85,12.05]
[1673635914124,44.49,16.86,16.84,60.17]
[1673635914337,44.49,16.86,16.84,11.97]
[1673635914338,20.0,16.859,16.84,11.97]
[1673635914539,64.49,16.859,16.84,11.97]
[1673635914978,20.0,16.858,16.84,11.97]
[1673635915269,178.7,16.856,16.832,44.56]
[1673635915471,11.94,16.85,16.83,169.0175]
[1673635915701,20.0,16.849,16.83,60.19]
[1673635915943,37.0,16.848,16.83,60.19]
[1673635916117,112.9673,16.847,16.83,11.99]
[1673635916340,17.0,16.846,16.83,11.99]
[1673635916727,20.0,16.844,16.83,11.99]
[1673635916955,17.0,16.843,16.83,11.99]
[1673635917177,61.53,16.843,16.83,11.99]
[1673635917383,20.0,16.842,16.83,11.99]
[1673635917588,17.0,16.841,16.83,11.99]
[1673635917804,61.54,16.841,16.83,11.99]
[1673635918952,20.0,16.84,16.83,11.99]
[1673635919168,17.0,16.839,16.83,11.99]
[1673635919387,61.54,16.839,16.83,11.99]
[1673635920241,61.54,16.839,16.822,64.59]
[1673635920242,20.0,16.838,16.822,44.59]
[1673635920459,17.0,16.837,16.82,12.17]
[1673635920768,81.55,16.837,16.82,60.24]
[1673635921076,81.55,16.837,16.82,90.2091928]
[1673635921787,44.55,16.837,16.82,90.2091928]
[1673635922212,17.0,16.836,16.82,90.2091928]
[1673635922746,20.0,16.834,16.82,90.2091928]
[1673635922965,17.0,16.833,16.82,90.2091928]
[1673635923786,17.0,16.833,16.82,60.24]
[1673635925583,44.56,16.832,16.817,44.6]
[1673635925910,44.56,16.832,16.81,60.32]
[1673635925911,20.0,16.83,16.811,44.62]
[1673635926099,17.0,16.829,16.811,44.62]
[1673635926303,20.0,16.828,16.811,74.5891928]
[1673635926530,17.0,16.827,16.811,74.5891928]
[1673635926730,81.58,16.827,16.811,74.5891928]
[1673635926945,61.58,16.827,16.811,44.62]
[1673635928628,20.0,16.826,16.811,44.62]
[1673635928825,17.0,16.825,16.81,12.04]
[1673635929051,61.58,16.825,16.81,12.04]
[1673635929674,133.5679,16.824,16.81,12.04]
[1673635929888,17.0,16.823,16.81,12.04]
[1673635930105,44.59,16.823,16.811,17.0]
[1673635930307,113.5679,16.824,16.811,61.62]
[1673635930507,113.5679,16.824,16.811,44.62]
[1673635930727,20.0,16.823,16.81,12.17]
[1673635931342,17.0,16.822,16.81,12.17]
[1673635931554,17.0,16.822,16.81,15.99]
[1673635931770,17.0,16.823,16.81,15.99]
[1673635932713,37.0,16.823,16.81,15.99]
[1673635932915,113.5679,16.824,16.811,46.9691928]
[1673635933131,20.0,16.828,16.811,46.9691928]
[1673635933339,20.0,16.828,16.812,29.9691928]
[1673635933556,64.57,16.828,16.813,17.0]
[1673635933760,64.57,16.828,16.813,61.61]
[1673635934071,20.0,16.827,16.813,61.61]
[1673635934281,17.0,16.826,16.812,29.9691928]
[1673635934721,61.58,16.826,16.812,29.9691928]
[1673635935250,61.58,16.826,16.81,16.19]
[1673635935654,20.0,16.825,16.81,16.19]
[1673635935985,17.0,16.824,16.81,16.19]
[1673635936303,61.58,16.824,16.81,16.19]
[1673635936696,20.0,16.823,16.81,16.19]
[1673635936923,17.0,16.822,16.81,16.19]
[1673635937242,44.58,16.824,16.81,46.1591928]
[1673635937445,44.58,16.827,16.811,44.62]
[1673635937658,44.58,16.827,16.812,17.0]
[1673635938067,44.58,16.827,16.812,46.9691928]
[1673635938274,20.0,16.828,16.812,46.9691928]
[1673635938907,20.0,16.828,16.813,44.61]
[1673635939120,20.0,16.828,16.814,17.0]
[1673635939321,44.58,16.827,16.814,17.0]
[1673635939748,117.1682,16.83,16.815,94.5791928]
[1673635939957,117.1682,16.83,16.816,17.0]
[1673635940164,117.1682,16.83,16.817,20.0]
[1673635940390,117.1682,16.83,16.818,17.0]
[1673635940590,117.1682,16.83,16.819,20.0]
[1673635941318,117.1682,16.83,16.82,17.0]
[1673635942295,119.1157,16.833,16.82,32.95]
[1673635942510,119.1157,16.833,16.821,44.59]
[1673635942711,119.1157,16.833,16.822,17.0]
[1673635942905,119.1157,16.833,16.821,44.59]
[1673635942906,119.1157,16.833,16.821,74.5591928]
[1673635943116,20.0,16.832,16.821,44.59]
[1673635943454,20.0,16.832,16.819,20.0]
[1673635943668,17.0,16.831,16.816,20.0]
[1673635943854,17.0,16.831,16.816,64.61]
[1673635944184,119.1157,16.833,16.817,29.9691928]
[1673635944400,119.1157,16.833,16.818,37.0]
[1673635944609,119.1157,16.833,16.818,81.6]
[1673635944797,119.1157,16.833,16.819,29.9691928]
[1673635945007,119.1157,16.833,16.821,20.0]
[1673635945245,44.55,16.837,16.821,20.0]
[1673635945440,156.3055,16.837,16.822,17.0]
[1673635945649,111.7555,16.837,16.822,17.0]
[1673635946064,44.55,16.836,16.822,17.0]
[1673635946498,17.0,16.835,16.821,29.9691928]
[1673635946899,37.0,16.835,16.821,29.9691928]
[1673635947849,37.0,16.835,16.82,16.07]
[1673635948173,44.55,16.836,16.821,17.0]
[1673635948380,111.7555,16.837,16.821,61.59]
[1673635948583,111.7555,16.837,16.821,91.5591928]
[1673635950261,44.55,16.836,16.821,91.5591928]
[1673635950471,156.3055,16.837,16.821,91.5591928]
[1673635952374,156.3055,16.837,16.821,74.5591928]
[1673635952573,17.0,16.836,16.82,16.07]
[1673635953115,20.0,16.834,16.82,16.07]
[1673635953340,17.0,16.833,16.82,16.07]
[1673635953552,61.56,16.833,16.82,16.07]
[1673635953975,61.56,16.833,16.818,20.0]
[1673635953976,20.0,16.832,16.818,20.0]
[1673635954186,17.0,16.831,16.817,20.0]
[1673635954398,20.0,16.83,16.815,20.0]
[1673635954600,17.0,16.829,16.814,20.0]
[1673635954808,61.57,16.829,16.814,20.0]
[1673635957866,61.57,16.829,16.813,20.0]
[1673635959134,44.57,16.829,16.813,20.0]
[1673635959323,44.57,16.831,16.815,20.0]
[1673635959531,44.57,16.831,16.816,17.0]
[1673635959862,44.56,16.835,16.82,16.0]
[1673635960178,44.56,16.835,16.821,17.0]
[1673635960391,44.55,16.836,16.821,17.0]
[1673635960594,17.0,16.835,16.821,17.0]
[1673635960821,44.55,16.836,16.821,17.0]
[1673635961002,44.55,16.836,16.821,46.9691928]
[1673635961213,44.55,16.836,16.821,91.5591928]
[1673635961423,44.55,16.836,16.822,20.0]
[1673635961644,156.3055,16.837,16.823,17.0]
[1673635961858,111.7555,16.837,16.823,46.9691928]
[1673635962066,111.7555,16.837,16.821,44.59]
[1673635962279,20.0,16.835,16.82,15.98]
[1673635962791,20.0,16.835,16.818,74.5691928]
[1673635962792,61.56,16.834,16.818,29.9691928]
[1673635963121,20.0,16.833,16.819,20.0]
[1673635963328,17.0,16.832,16.819,20.0]
[1673635963526,61.56,16.832,16.819,20.0]
[1673635963739,61.56,16.832,16.815,20.0]
[1673635963960,61.56,16.832,16.815,64.61]
[1673635964158,61.56,16.832,16.815,20.0]
[1673635965003,20.0,16.831,16.814,20.0]
[1673635965335,17.0,16.83,16.814,40.0]
[1673635965526,17.0,16.831,16.815,29.9691928]
[1673635965868,44.57,16.829,16.817,20.0]
[1673635966063,44.56,16.834,16.82,16.0]
[1673635966268,44.55,16.836,16.821,17.0]
[1673635966479,44.55,16.836,16.821,61.59]
[1673635966890,111.7555,16.837,16.821,91.5591928]
[1673635967322,111.7555,16.837,16.822,20.0]
[1673635967532,111.7555,16.837,16.823,17.0]
[1673635967740,44.55,16.838,16.823,61.59]
[1673635968273,20.0,16.84,16.823,61.59]
[1673635968495,127.837,16.839,16.823,17.0]
[1673635968681,20.0,16.838,16.822,17.0]
[1673635969206,40.0,16.838,16.822,17.0]
[1673635969415,61.55,16.837,16.822,17.0]
[1673635970145,44.55,16.837,16.822,17.0]
[1673635970355,20.0,16.838,16.822,17.0]
[1673635970589,64.55,16.838,16.822,17.0]
[1673635971100,20.0,16.838,16.823,44.59]
[1673635971314,20.0,16.838,16.824,17.0]
[1673635971637,64.55,16.838,16.824,17.0]
[1673635971841,20.0,16.838,16.824,17.0]
[1673635972796,44.55,16.837,16.824,17.0]
[1673635973002,64.55,16.838,16.824,17.0]
[1673635973953,64.55,16.838,16.822,20.0]
[1673635973954,64.55,16.838,16.823,17.0]
[1673635974895,64.55,16.838,16.822,17.0]
[1673635975206,20.0,16.837,16.822,17.0]
[1673635975411,64.55,16.838,16.822,17.0]
[1673635976070,20.0,16.837,16.821,44.59]
[1673635976248,17.0,16.836,16.82,80.28]
[1673635976457,61.55,16.836,16.82,80.28]
[1673635977300,61.55,16.836,16.82,16.19]
[1673635978465,61.55,16.836,16.821,17.0]
[1673635979294,20.0,16.835,16.821,17.0]
[1673635979512,17.0,16.834,16.821,17.0]
[1673635979735,61.56,16.834,16.82,16.19]
[1673635981005,20.0,16.833,16.82,16.19]
[1673635981820,44.56,16.832,16.82,16.19]
[1673635982975,44.56,16.833,16.82,16.19]
[1673635983199,44.56,16.833,16.821,17.0]
[1673635983621,44.55,16.836,16.821,17.0]
[1673635983831,17.0,16.835,16.821,17.0]
[1673635984258,44.56,16.834,16.821,17.0]
[1673635990250,44.56,16.834,16.82,16.19]
[1673635990444,17.0,16.833,16.82,16.19]
[1673635990660,17.0,16.833,16.816,20.0]
[1673635990991,20.0,16.831,16.815,20.0]
[1673635991181,17.0,16.83,16.814,20.0]
[1673635991396,61.57,16.83,16.814,20.0]
[1673635991830,61.57,16.83,16.815,17.0]
[1673635992016,61.57,16.83,16.816,20.0]
[1673635993928,44.57,16.83,16.82,15.94]
[1673635994249,44.55,16.836,16.82,15.94]
[1673635995300,17.0,16.835,16.82,15.94]
[1673635995717,44.56,16.834,16.82,15.94]
[1673635995922,17.0,16.833,16.82,15.94]
[1673635996329,44.56,16.832,16.82,15.94]
[1673635999504,44.56,16.832,16.816,20.0]
[1673635999696,17.0,16.831,16.814,20.0]
[1673635999910,20.0,16.83,16.814,20.0]
[1673636000117,17.0,16.829,16.813,20.0]
[1673636000656,44.57,16.828,16.813,20.0]
[1673636000983,17.0,16.827,16.814,17.0]
[1673636001169,17.0,16.827,16.815,20.0]
[1673636001378,17.0,16.827,16.813,20.0]